[Event "13 Open de Quenza"]
[Site "Quenza, France"]
[Date "2024.07.07"]
[Round "4.11"]
[White "Ternault, Mathieu"]
[Black "Chen, Muxi"]
[Result "1-0"]
[TimeControl "5min+3s/move"]
[WhiteElo "2332"]
[BlackElo "2030"]

1. b3 {[%clk 00:05:03]} {[%emt 00:00:01]} c5 {[%clk 00:04:53]} {[%emt
00:00:12]} 2. Bb2 {[%clk 00:05:03]} {[%emt 00:00:02]} Nc6 {[%clk 00:04:53]}
{[%emt 00:00:01]} 3. Nf3 {[%clk 00:05:02]} {[%emt 00:00:04]} Nf6 {[%clk
00:04:48]} {[%emt 00:00:09]} 4. g3 {[%clk 00:05:02]} {[%emt 00:00:02]} d5
{[%clk 00:04:45]} {[%emt 00:00:05]} 5. Bg2 {[%clk 00:05:00]} {[%emt 00:00:06]}
Bf5 {[%clk 00:04:19]} {[%emt 00:00:29]} 6. d3 {[%clk 00:04:50]} {[%emt
00:00:13]} e6 {[%clk 00:04:09]} {[%emt 00:00:13]} 7. Nbd2 {[%clk 00:04:50]}
{[%emt 00:00:02]} Be7 {[%clk 00:04:05]} {[%emt 00:00:06]} 8. O-O {[%clk
00:04:45]} {[%emt 00:00:08]} O-O {[%clk 00:03:58]} {[%emt 00:00:10]} 9. e3
{[%clk 00:04:39]} {[%emt 00:00:09]} Rc8 {[%clk 00:03:57]} {[%emt 00:00:04]} 10.
Qe2 {[%clk 00:04:33]} {[%emt 00:00:09]} Qd7 {[%clk 00:03:47]} {[%emt 00:00:13]}
11. e4 {[%clk 00:04:04]} {[%emt 00:00:32]} dxe4 {[%clk 00:03:47]} {[%emt
00:00:01]} 12. dxe4 {[%clk 00:03:53]} {[%emt 00:00:14]} Bg4 {[%clk 00:03:45]}
{[%emt 00:00:05]} 13. h3 {[%clk 00:03:53]} {[%emt 00:00:02]} Bh5 {[%clk
00:03:41]} {[%emt 00:00:07]} 14. g4 {[%clk 00:03:28]} {[%emt 00:00:27]} Bg6
{[%clk 00:03:41]} 15. Rad1 {[%clk 00:02:44]} {[%emt 00:00:48]} Qc7 {[%clk
00:03:32]} {[%emt 00:00:12]} 16. e5 {[%clk 00:02:23]} {[%emt 00:00:24]} Nd5
{[%clk 00:03:32]} 17. Nc4 {[%clk 00:02:23]} {[%emt 00:00:02]} Nf4 {[%clk
00:03:27]} {[%emt 00:00:08]} 18. Qe3 {[%clk 00:02:11]} {[%emt 00:00:15]} Nxg2
{[%clk 00:03:26]} {[%emt 00:00:04]} 19. Kxg2 {[%clk 00:02:11]} {[%emt
00:00:02]} Bxc2 {[%clk 00:03:20]} {[%emt 00:00:10]} 20. Rd2 {[%clk 00:02:11]}
{[%emt 00:00:01]} Bg6 {[%clk 00:03:14]} {[%emt 00:00:08]} 21. Nd6 {[%clk
00:02:11]} {[%emt 00:00:02]} Bxd6 {[%clk 00:02:53]} {[%emt 00:00:24]} 22. exd6
{[%clk 00:02:11]} {[%emt 00:00:01]} Qd7 {[%clk 00:02:51]} {[%emt 00:00:05]} 23.
Qxc5 {[%clk 00:02:03]} {[%emt 00:00:11]} Be4 {[%clk 00:02:49]} {[%emt
00:00:04]} 24. Kg1 {[%clk 00:01:04]} {[%emt 00:01:02]} f6 {[%clk 00:02:16]}
{[%emt 00:00:36]} 25. Qe3 {[%clk 00:01:02]} {[%emt 00:00:04]} Bd5 {[%clk
00:02:14]} {[%emt 00:00:06]} 26. Ba3 {[%clk 00:01:00]} {[%emt 00:00:05]} b5
{[%clk 00:02:05]} {[%emt 00:00:12]} 27. Nd4 {[%clk 00:00:31]} {[%emt 00:00:32]}
Nxd4 {[%clk 00:01:29]} {[%emt 00:00:39]} 28. Qxd4 {[%clk 00:00:25]} {[%emt
00:00:09]} a5 {[%clk 00:01:29]} {[%emt 00:00:01]} 29. Bc5 {[%clk 00:00:25]}
{[%emt 00:00:03]} Rc6 {[%clk 00:01:17]} {[%emt 00:00:16]} 30. Rc1 {[%clk
00:00:07]} {[%emt 00:00:21]} Rfc8 {[%clk 00:01:14]} {[%emt 00:00:05]} 31. b4
{[%clk 00:00:07]} {[%emt 00:00:02]} axb4 {[%clk 00:01:03]} {[%emt 00:00:13]} 32.
Qxb4 {[%clk 00:00:07]} Rxd6 {[%clk 00:01:03]} {[%emt 00:00:01]} 33. Bxd6 {[%clk
00:00:00]} {[%emt 00:00:07]} 1-0

[Event "13 Open de Quenza"]
[Site "Quenza, France"]
[Date "2024.07.07"]
[Round "4.12"]
[White "Unuk, Laura"]
[Black "Di Pietro, Vincenzo"]
[Result "1-0"]
[TimeControl "5min+3s/move"]
[WhiteElo "2324"]
[BlackElo "1846"]

1. d4 {[%clk 00:05:03]} {[%emt 00:00:01]} Nf6 {[%clk 00:05:03]} {[%emt
00:00:02]} 2. Nc3 {[%clk 00:05:03]} {[%emt 00:00:02]} c5 {[%clk 00:05:03]}
{[%emt 00:00:01]} 3. d5 {[%clk 00:05:03]} {[%emt 00:00:02]} e6 {[%clk
00:05:03]} {[%emt 00:00:01]} 4. e4 {[%clk 00:05:03]} {[%emt 00:00:01]} exd5
{[%clk 00:05:03]} {[%emt 00:00:03]} 5. exd5 {[%clk 00:05:03]} {[%emt 00:00:02]}
d6 {[%clk 00:05:03]} {[%emt 00:00:01]} 6. Bd3 {[%clk 00:04:47]} {[%emt
00:00:20]} Be7 {[%clk 00:05:03]} {[%emt 00:00:03]} 7. h3 {[%clk 00:04:47]}
{[%emt 00:00:02]} a6 {[%clk 00:05:03]} {[%emt 00:00:01]} 8. a4 {[%clk
00:04:47]} {[%emt 00:00:01]} b6 {[%clk 00:05:02]} {[%emt 00:00:04]} 9. Nf3
{[%clk 00:04:37]} {[%emt 00:00:13]} Bb7 {[%clk 00:05:02]} {[%emt 00:00:02]} 10.
Bc4 {[%clk 00:04:29]} {[%emt 00:00:11]} O-O {[%clk 00:05:00]} {[%emt 00:00:05]}
11. O-O {[%clk 00:04:29]} {[%emt 00:00:02]} Nbd7 {[%clk 00:04:52]} {[%emt
00:00:10]} 12. Bf4 {[%clk 00:04:26]} {[%emt 00:00:06]} b5 {[%clk 00:04:52]}
{[%emt 00:00:02]} 13. axb5 {[%clk 00:04:26]} {[%emt 00:00:02]} axb5 {[%clk
00:04:52]} {[%emt 00:00:01]} 14. Rxa8 {[%clk 00:04:15]} {[%emt 00:00:13]} Qxa8
{[%clk 00:04:39]} {[%emt 00:00:17]} 15. Bxb5 {[%clk 00:04:14]} {[%emt
00:00:05]} Nb6 {[%clk 00:03:59]} {[%emt 00:00:42]} 16. Re1 {[%clk 00:03:19]}
{[%emt 00:00:58]} Nfxd5 {[%clk 00:03:59]} {[%emt 00:00:02]} 17. Nxd5 {[%clk
00:03:15]} {[%emt 00:00:07]} Nxd5 {[%clk 00:03:59]} {[%emt 00:00:02]} 18. Bg3
{[%clk 00:03:15]} {[%emt 00:00:01]} Rd8 {[%clk 00:03:27]} {[%emt 00:00:35]} 19.
c4 {[%clk 00:03:15]} {[%emt 00:00:03]} Nc7 {[%clk 00:02:46]} {[%emt 00:00:44]}
20. Rxe7 {[%clk 00:03:15]} {[%emt 00:00:03]} Nxb5 {[%clk 00:02:46]} {[%emt
00:00:02]} 21. cxb5 {[%clk 00:03:15]} {[%emt 00:00:02]} d5 {[%clk 00:02:14]}
{[%emt 00:00:35]} 22. Ne5 {[%clk 00:03:15]} {[%emt 00:00:02]} f6 {[%clk
00:02:01]} {[%emt 00:00:15]} 23. Qg4 {[%clk 00:03:09]} {[%emt 00:00:09]} 1-0

[Event "13 Open de Quenza"]
[Site "Quenza, France"]
[Date "2024.07.07"]
[Round "5.1"]
[White "Anand, Viswanathan"]
[Black "Dourerassou, Jonathan"]
[Result "1-0"]
[TimeControl "5min+3s/move"]
[WhiteElo "2751"]
[BlackElo "2422"]

1. e4 {[%clk 00:05:03]} c5 {[%clk 00:05:03]} {[%emt 00:00:02]} 2. Nf3 {[%clk
00:05:03]} {[%emt 00:00:01]} Nc6 {[%clk 00:05:03]} {[%emt 00:00:02]} 3. Bb5
{[%clk 00:05:03]} {[%emt 00:00:01]} Nf6 {[%clk 00:05:03]} {[%emt 00:00:01]} 4.
Nc3 {[%clk 00:05:03]} {[%emt 00:00:02]} g6 {[%clk 00:05:03]} {[%emt 00:00:02]}
5. e5 {[%clk 00:04:58]} {[%emt 00:00:09]} Ng4 {[%clk 00:04:53]} {[%emt
00:00:12]} 6. Bxc6 {[%clk 00:04:58]} {[%emt 00:00:02]} dxc6 {[%clk 00:04:53]}
{[%emt 00:00:03]} 7. h3 {[%clk 00:04:58]} {[%emt 00:00:01]} Nh6 {[%clk
00:04:53]} {[%emt 00:00:02]} 8. g4 {[%clk 00:04:53]} {[%emt 00:00:08]} Bg7
{[%clk 00:04:51]} {[%emt 00:00:06]} 9. d3 {[%clk 00:04:53]} {[%emt 00:00:02]}
b6 {[%clk 00:04:40]} {[%emt 00:00:14]} 10. Qe2 {[%clk 00:04:42]} {[%emt
00:00:13]} O-O {[%clk 00:04:32]} {[%emt 00:00:11]} 11. Bf4 {[%clk 00:04:24]}
{[%emt 00:00:22]} f5 {[%clk 00:04:23]} {[%emt 00:00:12]} 12. g5 {[%clk
00:04:18]} {[%emt 00:00:08]} Nf7 {[%clk 00:04:23]} {[%emt 00:00:02]} 13. h4
{[%clk 00:04:18]} {[%emt 00:00:01]} Qe8 {[%clk 00:04:13]} {[%emt 00:00:14]} 14.
O-O-O {[%clk 00:04:13]} {[%emt 00:00:08]} Nd8 {[%clk 00:04:13]} {[%emt
00:00:03]} 15. Qe3 {[%clk 00:04:07]} {[%emt 00:00:08]} Ne6 {[%clk 00:04:11]}
{[%emt 00:00:04]} 16. h5 {[%clk 00:03:58]} {[%emt 00:00:12]} Qf7 {[%clk
00:03:53]} {[%emt 00:00:21]} 17. h6 {[%clk 00:03:51]} {[%emt 00:00:11]} Bh8
{[%clk 00:03:53]} {[%emt 00:00:02]} 18. d4 {[%clk 00:03:50]} {[%emt 00:00:04]}
cxd4 {[%clk 00:03:30]} {[%emt 00:00:26]} 19. Nxd4 {[%clk 00:03:50]} {[%emt
00:00:02]} c5 {[%clk 00:03:30]} {[%emt 00:00:01]} 20. Nxe6 {[%clk 00:03:46]}
{[%emt 00:00:07]} Bxe6 {[%clk 00:03:29]} {[%emt 00:00:04]} 21. a3 {[%clk
00:03:39]} {[%emt 00:00:10]} Rfd8 {[%clk 00:03:29]} 22. Bg3 {[%clk 00:03:35]}
{[%emt 00:00:07]} Qe8 {[%clk 00:03:08]} {[%emt 00:00:24]} 23. f4 {[%clk
00:03:35]} {[%emt 00:00:02]} Qc6 {[%clk 00:03:08]} {[%emt 00:00:01]} 24. Bf2
{[%clk 00:03:30]} {[%emt 00:00:07]} Kf7 {[%clk 00:03:08]} {[%emt 00:00:02]} 25.
Rhe1 {[%clk 00:03:10]} {[%emt 00:00:23]} Rac8 {[%clk 00:03:08]} {[%emt
00:00:01]} 26. Rxd8 {[%clk 00:03:07]} {[%emt 00:00:06]} Rxd8 {[%clk 00:03:08]}
{[%emt 00:00:01]} 27. Rd1 {[%clk 00:03:07]} Rxd1+ {[%clk 00:03:06]} {[%emt
00:00:05]} 28. Nxd1 {[%clk 00:03:07]} {[%emt 00:00:03]} Qd5 {[%clk 00:03:06]}
{[%emt 00:00:02]} 29. b3 {[%clk 00:03:07]} {[%emt 00:00:03]} Qh1 {[%clk
00:02:56]} {[%emt 00:00:14]} 30. Qe1 {[%clk 00:03:01]} {[%emt 00:00:09]} Qf3
{[%clk 00:02:56]} {[%emt 00:00:03]} 31. Be3 {[%clk 00:03:00]} {[%emt 00:00:03]}
Bd5 {[%clk 00:02:56]} {[%emt 00:00:02]} 32. Nc3 {[%clk 00:02:54]} {[%emt
00:00:08]} Be6 {[%clk 00:02:56]} {[%emt 00:00:02]} 33. Qe2 {[%clk 00:02:53]}
{[%emt 00:00:04]} Qh1+ {[%clk 00:02:53]} {[%emt 00:00:06]} 34. Kb2 {[%clk
00:02:53]} {[%emt 00:00:02]} Qc6 {[%clk 00:02:47]} {[%emt 00:00:08]} 35. Qa6
{[%clk 00:02:53]} {[%emt 00:00:03]} c4 {[%clk 00:02:20]} {[%emt 00:00:31]} 36.
b4 {[%clk 00:02:51]} {[%emt 00:00:05]} Qd7 {[%clk 00:01:56]} {[%emt 00:00:27]}
37. a4 {[%clk 00:02:45]} {[%emt 00:00:09]} Qc7 {[%clk 00:01:23]} {[%emt
00:00:36]} 38. a5 {[%clk 00:02:42]} {[%emt 00:00:05]} bxa5 {[%clk 00:01:15]}
{[%emt 00:00:12]} 39. Qxa5 {[%clk 00:02:39]} {[%emt 00:00:06]} Qb7 {[%clk
00:01:14]} {[%emt 00:00:04]} 40. b5 {[%clk 00:02:39]} {[%emt 00:00:03]} Qf3
{[%clk 00:00:43]} {[%emt 00:00:34]} 41. Qxa7 {[%clk 00:02:39]} {[%emt
00:00:02]} 1-0

[Event "13 Open de Quenza"]
[Site "Quenza, France"]
[Date "2024.07.07"]
[Round "5.2"]
[White "Fedorchuk, Sergey A."]
[Black "Fressinet, Laurent"]
[Result "0-1"]
[TimeControl "5min+3s/move"]
[WhiteElo "2554"]
[BlackElo "2625"]

1. e4 {[%clk 00:05:03]} {[%emt 00:00:02]} e5 {[%clk 00:05:03]} {[%emt
00:00:02]} 2. Nf3 {[%clk 00:05:03]} {[%emt 00:00:02]} Nc6 {[%clk 00:05:03]}
{[%emt 00:00:02]} 3. Bc4 {[%clk 00:05:03]} {[%emt 00:00:03]} Nf6 {[%clk
00:05:03]} {[%emt 00:00:02]} 4. d3 {[%clk 00:05:03]} {[%emt 00:00:02]} Bc5
{[%clk 00:05:03]} {[%emt 00:00:02]} 5. O-O {[%clk 00:05:03]} {[%emt 00:00:03]}
d6 {[%clk 00:05:03]} {[%emt 00:00:02]} 6. c3 {[%clk 00:05:01]} {[%emt
00:00:05]} a6 {[%clk 00:05:03]} {[%emt 00:00:02]} 7. Bb3 {[%clk 00:05:00]}
{[%emt 00:00:05]} O-O {[%clk 00:04:58]} {[%emt 00:00:09]} 8. h3 {[%clk
00:04:50]} {[%emt 00:00:13]} h6 {[%clk 00:04:42]} {[%emt 00:00:18]} 9. Re1
{[%clk 00:04:50]} {[%emt 00:00:03]} Re8 {[%clk 00:04:41]} {[%emt 00:00:04]} 10.
Nbd2 {[%clk 00:04:37]} {[%emt 00:00:16]} Be6 {[%clk 00:04:39]} {[%emt
00:00:05]} 11. Nf1 {[%clk 00:04:25]} {[%emt 00:00:15]} d5 {[%clk 00:04:39]}
{[%emt 00:00:02]} 12. exd5 {[%clk 00:04:24]} {[%emt 00:00:04]} Bxd5 {[%clk
00:04:39]} {[%emt 00:00:02]} 13. Ng3 {[%clk 00:04:21]} {[%emt 00:00:07]} Bxb3
{[%clk 00:03:58]} {[%emt 00:00:44]} 14. axb3 {[%clk 00:04:18]} {[%emt
00:00:06]} Qd7 {[%clk 00:03:58]} {[%emt 00:00:03]} 15. b4 {[%clk 00:04:08]}
{[%emt 00:00:14]} Bf8 {[%clk 00:03:58]} {[%emt 00:00:02]} 16. Ne4 {[%clk
00:03:54]} {[%emt 00:00:17]} Nd5 {[%clk 00:03:21]} {[%emt 00:00:39]} 17. Nc5
{[%clk 00:03:26]} {[%emt 00:00:32]} Bxc5 {[%clk 00:03:09]} {[%emt 00:00:16]} 18.
bxc5 {[%clk 00:03:26]} {[%emt 00:00:02]} Nf6 {[%clk 00:03:09]} {[%emt
00:00:02]} 19. Be3 {[%clk 00:03:07]} {[%emt 00:00:22]} Qd5 {[%clk 00:03:00]}
{[%emt 00:00:12]} 20. Qc2 {[%clk 00:02:51]} {[%emt 00:00:20]} Rad8 {[%clk
00:03:00]} {[%emt 00:00:02]} 21. Rad1 {[%clk 00:02:42]} {[%emt 00:00:12]} Rd7
{[%clk 00:02:33]} {[%emt 00:00:29]} 22. b4 {[%clk 00:02:26]} {[%emt 00:00:20]}
Qe6 {[%clk 00:02:05]} {[%emt 00:00:30]} 23. Rd2 {[%clk 00:02:13]} {[%emt
00:00:18]} Qf5 {[%clk 00:02:01]} {[%emt 00:00:06]} 24. Nh4 {[%clk 00:01:25]}
{[%emt 00:00:51]} Qh5 {[%clk 00:01:49]} {[%emt 00:00:16]} 25. Nf3 {[%clk
00:01:25]} {[%emt 00:00:01]} Nd5 {[%clk 00:01:49]} 26. Rde2 {[%clk 00:01:19]}
{[%emt 00:00:10]} Qf5 {[%clk 00:01:36]} {[%emt 00:00:15]} 27. Bc1 {[%clk
00:01:18]} {[%emt 00:00:04]} Nf6 {[%clk 00:01:28]} {[%emt 00:00:10]} 28. Re3
{[%clk 00:01:08]} {[%emt 00:00:14]} Red8 {[%clk 00:01:02]} {[%emt 00:00:29]} 29.
Nxe5 {[%clk 00:01:02]} {[%emt 00:00:09]} Nxe5 {[%clk 00:01:02]} {[%emt
00:00:01]} 30. Rxe5 {[%clk 00:01:02]} {[%emt 00:00:01]} Qxd3 {[%clk 00:01:02]}
{[%emt 00:00:01]} 31. Qxd3 {[%clk 00:00:50]} {[%emt 00:00:15]} Rxd3 {[%clk
00:01:02]} {[%emt 00:00:01]} 32. R5e3 {[%clk 00:00:49]} {[%emt 00:00:03]} Kf8
{[%clk 00:00:52]} {[%emt 00:00:14]} 33. Kf1 {[%clk 00:00:49]} {[%emt 00:00:02]}
Rxe3 {[%clk 00:00:35]} {[%emt 00:00:20]} 34. Bxe3 {[%clk 00:00:49]} Nd5 {[%clk
00:00:35]} 35. Bd4 {[%clk 00:00:20]} {[%emt 00:00:32]} f6 {[%clk 00:00:35]} 36.
Re4 {[%clk 00:00:18]} {[%emt 00:00:05]} Kf7 {[%clk 00:00:30]} {[%emt 00:00:09]}
37. g4 {[%clk 00:00:14]} {[%emt 00:00:07]} Re8 {[%clk 00:00:22]} {[%emt
00:00:11]} 0-1

[Event "13 Open de Quenza"]
[Site "Quenza, France"]
[Date "2024.07.07"]
[Round "5.3"]
[White "Bellahcene, Bilel"]
[Black "Maurizzi, Marc Andria"]
[Result "1-0"]
[TimeControl "5min+3s/move"]
[WhiteElo "2535"]
[BlackElo "2620"]

1. e4 {[%clk 00:05:03]} e5 {[%clk 00:05:02]} {[%emt 00:00:05]} 2. Nf3 {[%clk
00:05:03]} Nc6 {[%clk 00:05:02]} 3. Bb5 {[%clk 00:05:03]} a6 {[%clk 00:05:02]}
{[%emt 00:00:04]} 4. Ba4 {[%clk 00:05:03]} {[%emt 00:00:01]} Nf6 {[%clk
00:05:02]} 5. O-O {[%clk 00:05:03]} {[%emt 00:00:03]} b5 {[%clk 00:05:02]}
{[%emt 00:00:02]} 6. Bb3 {[%clk 00:05:03]} {[%emt 00:00:01]} Bc5 {[%clk
00:05:02]} 7. d3 {[%clk 00:04:41]} {[%emt 00:00:25]} d6 {[%clk 00:05:02]}
{[%emt 00:00:02]} 8. a4 {[%clk 00:04:31]} {[%emt 00:00:13]} Rb8 {[%clk
00:04:52]} {[%emt 00:00:13]} 9. axb5 {[%clk 00:04:26]} {[%emt 00:00:08]} axb5
{[%clk 00:04:52]} {[%emt 00:00:02]} 10. h3 {[%clk 00:03:55]} {[%emt 00:00:34]}
h6 {[%clk 00:04:50]} {[%emt 00:00:05]} 11. Be3 {[%clk 00:03:49]} {[%emt
00:00:09]} O-O {[%clk 00:04:38]} {[%emt 00:00:15]} 12. Nc3 {[%clk 00:03:49]}
{[%emt 00:00:01]} Bxe3 {[%clk 00:04:20]} {[%emt 00:00:20]} 13. fxe3 {[%clk
00:03:49]} {[%emt 00:00:01]} Nb4 {[%clk 00:04:20]} {[%emt 00:00:01]} 14. Ne2
{[%clk 00:03:23]} {[%emt 00:00:29]} c5 {[%clk 00:04:20]} {[%emt 00:00:03]} 15.
Ng3 {[%clk 00:03:23]} Qc7 {[%clk 00:03:53]} {[%emt 00:00:31]} 16. Qd2 {[%clk
00:03:23]} {[%emt 00:00:01]} Be6 {[%clk 00:03:51]} {[%emt 00:00:05]} 17. Bxe6
{[%clk 00:03:18]} {[%emt 00:00:07]} fxe6 {[%clk 00:03:51]} 18. c3 {[%clk
00:03:08]} {[%emt 00:00:15]} Nc6 {[%clk 00:03:51]} 19. Qc2 {[%clk 00:03:05]}
{[%emt 00:00:05]} c4 {[%clk 00:03:44]} {[%emt 00:00:10]} 20. d4 {[%clk
00:03:05]} d5 {[%clk 00:03:44]} 21. exd5 {[%clk 00:02:53]} {[%emt 00:00:15]}
Nxd5 {[%clk 00:03:41]} {[%emt 00:00:07]} 22. Qe4 {[%clk 00:02:53]} exd4 {[%clk
00:03:38]} {[%emt 00:00:06]} 23. Qxe6+ {[%clk 00:02:52]} {[%emt 00:00:04]} Kh8
{[%clk 00:03:06]} {[%emt 00:00:35]} 24. Qxd5 {[%clk 00:02:52]} {[%emt
00:00:02]} dxe3 {[%clk 00:03:04]} {[%emt 00:00:05]} 25. Ne2 {[%clk 00:02:48]}
{[%emt 00:00:07]} Rf6 {[%clk 00:02:56]} {[%emt 00:00:11]} 26. Nfd4 {[%clk
00:02:34]} {[%emt 00:00:17]} Rd6 {[%clk 00:02:52]} {[%emt 00:00:06]} 27. Qc5
{[%clk 00:02:34]} {[%emt 00:00:04]} Qd7 {[%clk 00:02:46]} {[%emt 00:00:10]} 28.
Nxc6 {[%clk 00:02:34]} {[%emt 00:00:04]} Rxc6 {[%emt 00:00:02]} 29. Qxe3 {[%clk
00:02:34]} Re6 {[%clk 00:02:46]} 30. Qf2 {[%clk 00:02:34]} {[%emt 00:00:02]}
Rf6 {[%clk 00:02:46]} {[%emt 00:00:02]} 31. Qd4 {[%clk 00:02:34]} {[%emt
00:00:02]} Rd6 {[%clk 00:02:46]} {[%emt 00:00:01]} 32. Qf4 {[%clk 00:02:16]}
{[%emt 00:00:20]} Re8 {[%clk 00:02:39]} {[%emt 00:00:10]} 33. Nd4 {[%clk
00:02:16]} {[%emt 00:00:01]} Rg6 {[%clk 00:02:39]} 34. Qf5 {[%emt 00:00:04]}
Qd6 35. Rae1 {[%clk 00:01:36]} {[%emt 00:00:41]} Rxe1 {[%clk 00:02:28]} {[%emt
00:00:14]} 36. Rxe1 {[%clk 00:01:36]} {[%emt 00:00:01]} Qg3 {[%clk 00:02:28]}
37. Re8+ {[%clk 00:01:34]} {[%emt 00:00:06]} Kh7 {[%clk 00:02:28]} {[%emt
00:00:01]} 38. Qe4 {[%clk 00:01:20]} {[%emt 00:00:17]} 1-0